Workbook

Sheet Instructions
A1: PERMIT AND ESCROW ESTIMATES FOR DEVELOPMENTS
B2: Form Ver. | C2: 2023-05-24
A4: 1) | B4: PURPOSE
B5: The purpose of this spreadsheet is to (1) create consistency in unit pricing for Engineer's Cost Estimates and (2) simplify the determination of applicable permit fees and deposits / guarantees. A Developer submitting plans for Engineering Department review and approval, shall submit this spreadsheet as the Engineer's Cost Estimate. The spreadsheet will be utilized to determine the appropriate permit fees in addition to required deposits and guarantees.
A11: 2) | B11: INSTRUCTIONS
B12: Fill out this spreadsheet in the order of the steps indicated on the tabs. Fill in the orange cells with the required information. These are the only ones that are to be filled. Insert additional rows as needed for material installation not listed. Do not remove any lines from the estimate. Print and submit with the appropriate application.
A18: 3) | B18: UNIT PRICES
B19: Contained within the tabs are schedules of Unit Prices that were produced by the Saint Louis County Department of Planning and the Department of Highways & Traffic for the computation of subdivision escrows and/or bonds dated March 4, 2008. The calculated unit prices shown are based on a combination of actual prices, bid tab estimates, the Construction Cost Index (CCI) (St. Louis County Design Criteria Section 74.00), and information provided by various sources, including but not limited to: the Site Improvement Association, Home Builders Association, Saint Louis County Department of Planning, Saint Louis County Department of Public Work, the Saint Louis County Department of Highways and Traffic, etc. Unit Prices are analyzed during the last quarter of each year to determine the pricing adjustments necessary for the upcoming year to reflect a one (1) year inflationary value. Where necessary, improvement items not shown on the schedules of Unit Prices shall be submitted with the estimated cost of construction for approval by the Engineering Department. The schedules of Unit Prices with an W* are unit prices that were not provided or adopted from St. Louis County. These prices are calculated based on actual prices and bid tab estimates from previous years.
A32: 4) | B32: LEGEND
B33: Acronym | C33: Definition
B34: LF | C34: Linear Foot
B35: SF | C35: Square Foot
B36: SY | C36: Square Yard
B37: CY | C37: Cubic Yard
B38: LS | C38: Lump Sump
A47: * | B47: MACROS NOTE
B48: Please note that this spreadsheet utilizes macros to add or delete new rows for additional items. If all items for the subject cost estimate are already included in the template spreadsheet, no changes should be necessary to complete the cost estimate. If the cost estimate has a unique item to be added and additional line items are needed, macros may need to be unblocked as macros from the internet are blocked by default in Office. Per guidance from the Microsoft learn module: "For an individual file, such as a file downloaded from an internt location or an email attachment the user has saved to their local device, the simplest way to unblock macros is to remove Mark of the Web. To remove, right-click on the file, choose Properties, and then select the Unblock checkbox on the General tab."
B49: Consult your IT Department, the Microsoft Learn module or other sources for information regarding the use of Macros, the security risk and determination of safe documents.

Sheet Step 1 - Permit Fee Estimate
D3: ='Step 1 - Permit Fee Estimate'!D15 -> 0
D4: Permit Fee Cost Estimate
C7: Permit Fee Instructions
C8: 1. Fill out orange cell information within Permitting Fee Input Table
C9: 2. Fill out Engineers Cost Estimate Sheet
C10: 3. Total permitting fee will be based on the combination of Grading and Construction permitting unless permits are issued separately.
C12: 4. Hover over cells with red triangles in the top right corner as they provide additional refences and instructions.
C14: Permitting Fee Input Table
C15: Development Name
C16: Development Type
C17: Acres Disturbed
C18: =IF(D16="Residential","# of Lots","# of Lots - N/A") -> # of Lots - N/A
C19: Total Cost of Public Improvements | D19: =SUM('Step 2- Engineers Cost Estimate'!I207:I213) -> 0
C21: =IF(D17>=2.28,"Grading Permit","Grading Permit - N/A") -> Grading Permit - N/A
C22: Base Fee | D22: 150
C23: $10 per Acre Disturbed | D23: =IF(D16="Non-Residential",D17*10,0) -> 0
C24: $10 per Residential Lot | D24: =IF(D16="Residential",D18*10,0) -> 0
D25: =IF(D17>=0.459,SUM(D22:D24),"N/A - Site is less than 20,000 SF") -> N/A - Site is less than 20,000 SF
C27: =IF(D19>=0,"Construction Permit - N/A","Construction Permit") -> Construction Permit - N/A
C28: 2% Cost of Public Improvements | D28: =0.02*D19 -> 0
C29: Engineer Review Credit | D29: =-IF(D16="Residential",150+(10*D18),150+(10*D17)) -> -150
D30: =IF(D19=0,"N/A - No Public Improvements",IF(SUM(D28:D29)>0,SUM(D28:D29),0)) -> N/A - No Public Improvements

Sheet Step 2- Engineers Cost Estimate
D3: ='Step 1 - Permit Fee Estimate'!D15 -> 0
D4: Improvements Cost Estimate
C5: UNIT DESCRIPTION | D5: UNIT PRICE | E5: UNIT | F5: ADD. COST | G5: NO. OF UNITS | I5: TOTAL
B6: Sediment and Erosion Control
C7: Erosion Control - Apartments / Condominiums (vegetation) | D7: =311*('Annual Change of CCI'!C47) -> 490.4419476 | E7: Unit | F7: =2480*('Annual Change of CCI'!C47) -> 3910.919711 | I7: =IF(G7>0,F7+(D7*G7),0) -> 0
C8: Erosion Control - Industrial / Commercial (vegetation) | D8: =1860*('Annual Change of CCI'!C47) -> 2933.189783 | E8: Acre | F8: =1550*('Annual Change of CCI'!C47) -> 2444.324819 | I8: 0
C9: Erosion Control - Residential (vegetation) | D9: =372*('Annual Change of CCI'!C47) -> 586.6379566 | E9: Lot | F9: =1240*('Annual Change of CCI'!C47) -> 1955.459855 | I9: 0
C10: Siltation Control - Apartments (silt fence, silt basins, check dams, etc.) | D10: =56*('Annual Change of CCI'!C47) -> 88.31109024 | E10: Unit | F10: =2480*('Annual Change of CCI'!C47) -> 3910.919711 | I10: 0
C11: Siltation Control - Non-Residential (silt fence, silt basins, check dams, etc.) | D11: =774*('Annual Change of CCI'!C47) -> 1220.585426 | E11: Acre | F11: =3110*('Annual Change of CCI'!C47) -> 4904.419476 | I11: 0
C12: Siltation Control - Residential (silt fence, silt basins, check dams, etc.) | D12: =158*('Annual Change of CCI'!C47) -> 249.1634332 | E12: Lot | F12: =2480*('Annual Change of CCI'!C47) -> 3910.919711 | I12: 0
C13: Seeding - Common Ground | D13: =0.62*('Annual Change of CCI'!C47) -> 0.9777299277 | E13: SY | I13: =IF(G13>0,F13+(D13*G13),0) -> 0
C14: Sodding - Common Ground | D14: =8.3*('Annual Change of CCI'!C47) -> 13.08896516 | E14: SY | I14: 0
B15: W* | C15: Temporary Silt Basin - Outfall Structure | D15: =5193*('Annual Change of CCI'!D47) -> 6145.657708 | E15: Each | I15: 0
B16: W* | C16: Temporary Silt Basin - Riser Pipe | D16: =10.386*('Annual Change of CCI'!D47) -> 12.29131542 | E16: LF | I16: 0
B17: W* | C17: Clearing | D17: =3115.8*('Annual Change of CCI'!D47) -> 3687.394625 | E17: Acres | I17: =IF(G17>0,F17+(D17*G17),0) -> 0
B18: W* | C18: Construction Entrance / Wash Down Pad / Parking | D18: =25.965*('Annual Change of CCI'!D47) -> 30.72828854 | E18: SY | I18: =IF(G18>0,F18+(D18*G18),0) -> 0
I19: =IF(G19>0,F19+(D19*G19),0) -> 0
D21: Sediment and Erosion Control | I21: =SUM(I7:I20) -> 0
B22: Grading
C23: Rock Excavation | D23: =24.4*('Annual Change of CCI'!C47) -> 38.47840361 | E23: CY | I23: =IF(G23>0,F23+(D23*G23),0) -> 0
C24: Retaining Wall - Concrete | D24: =912*('Annual Change of CCI'!C47) -> 1438.209184 | E24: CY | I24: 0
C25: Retaining Wall - Large Panel Wall System | D25: =61.5*('Annual Change of CCI'!C47) -> 96.98450089 | E25: SF | I25: 0
C26: Retaining Wall - Precast Concrete Block Wall | D26: =20.5*('Annual Change of CCI'!C47) -> 32.32816696 | E26: SF | I26: 0
B27: W* | C27: Horz Boring - Mobilization | D27: =5193*('Annual Change of CCI'!D47) -> 6145.657708 | E27: Each | I27: =IF(G27>0,F27+(D27*G27),0) -> 0
B28: W* | C28: Horz Boring - Bore Pit (Excavation and Backfilling) | D28: =51.93*('Annual Change of CCI'!D47) -> 61.45657708 | E28: CY | I28: =IF(G28>0,F28+(D28*G28),0) -> 0
B29: W* | C29: Horz Boring - Casing Pipe | D29: =25.965*('Annual Change of CCI'!D47) -> 30.72828854 | E29: LF | I29: =IF(G29>0,F29+(D29*G29),0) -> 0
B30: W* | C30: Horz Boring - Restoration (vegetation) | D30: =8.62038*('Annual Change of CCI'!D47) -> 10.2017918 | E30: SY | I30: =IF(G30>0,F30+(D30*G30),0) -> 0
I31: 0
D33: Grading | I33: =SUM(I23:I32) -> 0
B34: Water
B35: W* | C35: Connect to Existing Main | D35: =519.3*('Annual Change of CCI'!D47) -> 614.5657708 | E35: Each | I35: =IF(G35>0,F35+(D35*G35),0) -> 0
B36: W* | C36: 6" C-900 HDPE | D36: =25.965*('Annual Change of CCI'!D47) -> 30.72828854 | E36: LF | I36: =IF(G36>0,F36+(D36*G36),0) -> 0
B37: W* | C37: 8" C-906 HDPE | D37: =31.158*('Annual Change of CCI'!D47) -> 36.87394625 | E37: LF | I37: 0
B38: W* | C38: Fire Hydrant Assembly | D38: =2596.5*('Annual Change of CCI'!D47) -> 3072.828854 | E38: Each | I38: 0
B39: W* | C39: 6" Bend | D39: =233.685*('Annual Change of CCI'!D47) -> 276.5545969 | E39: Each | I39: 0
B40: W* | C40: 8" Bend | D40: =285.615*('Annual Change of CCI'!D47) -> 338.0111739 | E40: Each | I40: 0
B41: W* | C41: 8"x6" Reducer | D41: =207.72*('Annual Change of CCI'!D47) -> 245.8263083 | E41: Each | I41: 0
B42: W* | C42: 6" Valve Box w/ Valve | D42: =519.3*('Annual Change of CCI'!D47) -> 614.5657708 | E42: Each | I42: 0
B43: W* | C43: 8" Valve Box w/ Valve | D43: =727.02*('Annual Change of CCI'!D47) -> 860.3920791 | E43: Each | I43: 0
B44: W* | C44: 8"x8" Tee | D44: =363.51*('Annual Change of CCI'!D47) -> 430.1960396 | E44: Each | I44: 0
B45: W* | C45: Tracer Wire | D45: =1.0386*('Annual Change of CCI'!D47) -> 1.229131542 | E45: LF | I45: 0
B46: W* | C46: Thrust Block | D46: =155.79*('Annual Change of CCI'!D47) -> 184.3697312 | E46: Each | I46: 0
B47: W* | C47: Granular Fill (crossings) | D47: =10.386*('Annual Change of CCI'!D47) -> 12.29131542 | E47: Ton | I47: 0
B48: W* | C48: Jetting | D48: =1.0386*('Annual Change of CCI'!D47) -> 1.229131542 | E48: LF | I48: 0
B49: W* | C49: Location Markers | D49: =51.93*('Annual Change of CCI'!D47) -> 61.45657708 | E49: Each | I49: 0
B50: W* | C50: Backflow Preventer | D50: =3115.8*('Annual Change of CCI'!D47) -> 3687.394625 | E50: Each | I50: 0
B51: W* | C51: Bacteria Test | D51: =519.3*('Annual Change of CCI'!D47) -> 614.5657708 | E51: Each | F51: =519.3*('Annual Change of CCI'!D47) -> 614.5657708 | I51: 0
B52: W* | C52: Leakage Test | D52: =519.3*('Annual Change of CCI'!D47) -> 614.5657708 | E52: Each | F52: =519.3*('Annual Change of CCI'!D47) -> 614.5657708 | I52: 0
I53: 0
D55: Water | I55: =SUM(I35:I54) -> 0
B57: Sanitary
B58: W* | C58: 42" Manhole - Precast | D58: =1850*('Annual Change of CCI'!E47) -> 2138.121694 | E58: Each | I58: =IF(G58>0,(D58*G58)+F58,0) -> 0
B59: W* | C59: 48" Manhole - Precast | D59: =2000*('Annual Change of CCI'!E47) -> 2311.482913 | E59: Each | I59: =IF(G59>0,(D59*G59)+F59,0) -> 0
B60: W* | C60: 60" Manhole - Precast | D60: =2250*('Annual Change of CCI'!E47) -> 2600.418277 | E60: Each | I60: 0
B61: W* | C61: Manhole - Cast-in-Place (dog-house) | D61: =2250*('Annual Change of CCI'!E47) -> 2600.418277 | E61: Each | I61: 0
B62: W* | C62: 8" PVC Pipe | D62: =14.5404*('Annual Change of CCI'!D47) -> 17.20784158 | E62: LF | I62: 0
B63: W* | C63: 10" PVC Pipe | D63: =15.579*('Annual Change of CCI'!D47) -> 18.43697312 | E63: LF | I63: 0
B64: W* | C64: 8" DIP | D64: =41.544*('Annual Change of CCI'!D47) -> 49.16526166 | E64: LF | I64: 0
B65: W* | C65: 10" DIP | D65: =46.737*('Annual Change of CCI'!D47) -> 55.31091937 | E65: LF | I65: 0
B66: W* | C66: 8"x6" wyes | D66: =31.158*('Annual Change of CCI'!D47) -> 36.87394625 | E66: Each | I66: 0
B67: W* | C67: Grease Interceptor | D67: =4154.4*('Annual Change of CCI'!D47) -> 4916.526166 | E67: Each | I67: =IF(G67>0,(D67*G67)+F67,0) -> 0
B68: W* | C68: Granular Fill (crossings and bedding) | D68: =10.386*('Annual Change of CCI'!D47) -> 12.29131542 | E68: Ton | I68: 0
B69: W* | C69: Jetting | D69: =1.5579*('Annual Change of CCI'!D47) -> 1.843697312 | E69: LF | I69: 0
B70: W* | C70: Concrete Encasement/Cradle | D70: =207.72*('Annual Change of CCI'!D47) -> 245.8263083 | E70: CY | I70: 0
B71: W* | C71: Connect to Existing Main | D71: =519.3*('Annual Change of CCI'!D47) -> 614.5657708 | E71: Each | I71: 0
B72: W* | C72: Connect to Existing Structure | D72: =519.3*('Annual Change of CCI'!D47) -> 614.5657708 | E72: Each | I72: 0
B73: W* | C73: Force Main - 2" HDPE (& bends, fittings, valves) | D73: =46.737*('Annual Change of CCI'!D47) -> 55.31091937 | E73: LF | I73: 0
B74: W* | C74: Force Main - 6" HDPE (& bends, fittings, valves) | D74: =57.123*('Annual Change of CCI'!D47) -> 67.60223479 | E74: LF | I74: 0
B75: W* | C75: Force Main - Lift Station (& associated construction) | D75: =311580*('Annual Change of CCI'!D47) -> 368739.4625 | E75: LS | I75: 0
B76: W* | C76: Force Main - Air Release Valves | D76: =623.16*('Annual Change of CCI'!D47) -> 737.478925 | E76: Each | I76: 0
B77: W* | C77: Force Main - Location Markers | D77: =41.544*('Annual Change of CCI'!D47) -> 49.16526166 | E77: LF | I77: 0
B78: W* | C78: Force Main - Tracer Wire | D78: =1.0386*('Annual Change of CCI'!D47) -> 1.229131542 | E78: LF | I78: 0
B79: W* | C79: Force Main - Leakage Test | D79: =51.93*('Annual Change of CCI'!D47) -> 61.45657708 | E79: Run | F79: =519.3*('Annual Change of CCI'!D47) -> 614.5657708 | I79: 0
B80: W* | C80: Pressure and Vacuum Test | D80: =20.772*('Annual Change of CCI'!D47) -> 24.58263083 | E80: Run | F80: =519.3*('Annual Change of CCI'!D47) -> 614.5657708 | I80: 0
B81: W* | C81: Mandrel Test | D81: =10.386*('Annual Change of CCI'!D47) -> 12.29131542 | E81: Run | F81: =519.3*('Annual Change of CCI'!D47) -> 614.5657708 | I81: 0
I82: 0
D84: Sanitary | I84: =SUM(I58:I83) -> 0
B85: Storm
C86: 12" Flared End Section | D86: =517*('Annual Change of CCI'!C47) -> 815.300601 | E86: Each | I86: =IF(G86>0,(D86*G86)+F86,0) -> 0
C87: 15" Flared End Section | D87: =569*('Annual Change of CCI'!C47) -> 897.3037562 | E87: Each | I87: =IF(G87>0,(D87*G87)+F87,0) -> 0
C88: 18" Flared End Section | D88: =621*('Annual Change of CCI'!C47) -> 979.3069115 | E88: Each | I88: =IF(G88>0,(D88*G88)+F88,0) -> 0
C89: 21" Flared End Section | D89: =673*('Annual Change of CCI'!C47) -> 1061.310067 | E89: Each | I89: 0
C90: 24" Flared End Section | D90: =724*('Annual Change of CCI'!C47) -> 1141.736238 | E90: Each | I90: 0
C91: 27" Flared End Section | D91: =828*('Annual Change of CCI'!C47) -> 1305.742549 | E91: Each | I91: 0
C92: 30" Flared End Section | D92: =931*('Annual Change of CCI'!C47) -> 1468.171875 | E92: Each | I92: 0
C93: 33" Flared End Section | D93: =1294*('Annual Change of CCI'!C47) -> 2040.616978 | E93: Each | I93: 0
C94: 36" Flared End Section | D94: =1347*('Annual Change of CCI'!C47) -> 2124.197117 | E94: Each | I94: 0
C95: 42" Flared End Section | D95: =1552*('Annual Change of CCI'!C47) -> 2447.478787 | E95: Each | I95: 0
C96: 48" Flared End Section | D96: =1763*('Annual Change of CCI'!C47) -> 2780.222359 | E96: Each | I96: 0
C97: 54" Flared End Section | D97: =1865*('Annual Change of CCI'!C47) -> 2941.074702 | E97: Each | I97: 0
C98: 60" Flared End Section | D98: =2383*('Annual Change of CCI'!C47) -> 3757.952287 | E98: Each | I98: 0
C99: 66" Flared End Section | D99: =2798*('Annual Change of CCI'!C47) -> 4412.400545 | E99: Each | I99: 0
C100: 72" Flared End Section | D100: =3418*('Annual Change of CCI'!C47) -> 5390.130472 | E100: Each | I100: 0
C101: Toe Wall | D101: =207*('Annual Change of CCI'!C47) -> 326.4356372 | E101: CY | I101: 0
C102: 12" Headwall | D102: =1219*('Annual Change of CCI'!C47) -> 1922.343197 | E102: Each | I102: 0
C103: 15" Headwall | D103: =1245*('Annual Change of CCI'!C47) -> 1963.344774 | E103: Each | I103: 0
C104: 18" Headwall | D104: =1255*('Annual Change of CCI'!C47) -> 1979.114612 | E104: Each | I104: 0
C105: 21" Headwall | D105: =1300*('Annual Change of CCI'!C47) -> 2050.078881 | E105: Each | I105: 0
C106: 24" Headwall | D106: =1347*('Annual Change of CCI'!C47) -> 2124.197117 | E106: Each | I106: 0
C107: 27" Headwall | D107: =1435*('Annual Change of CCI'!C47) -> 2262.971688 | E107: Each | I107: 0
C108: 30" Headwall | D108: =1609*('Annual Change of CCI'!C47) -> 2537.366861 | E108: Each | I108: 0
C109: 33" Headwall | D109: =1747*('Annual Change of CCI'!C47) -> 2754.990619 | E109: Each | I109: 0
C110: 36" Headwall | D110: =1947*('Annual Change of CCI'!C47) -> 3070.38737 | E110: Each | I110: 0
C111: 42" Headwall | D111: =2070*('Annual Change of CCI'!C47) -> 3264.356372 | E111: Each | I111: 0
C112: 48" Headwall | D112: =2280*('Annual Change of CCI'!C47) -> 3595.52296 | E112: Each | I112: 0
C113: 54" Headwall | D113: =2434*('Annual Change of CCI'!C47) -> 3838.378458 | E113: Each | I113: 0
C114: 60" Headwall | D114: =2665*('Annual Change of CCI'!C47) -> 4202.661705 | E114: Each | I114: 0
C115: 66" Headwall | D115: =2952*('Annual Change of CCI'!C47) -> 4655.256043 | E115: Each | I115: 0
C116: 72" Headwall | D116: =3157*('Annual Change of CCI'!C47) -> 4978.537713 | E116: Each | I116: 0
C117: 12" RCP | D117: =34*('Annual Change of CCI'!C47) -> 53.61744765 | E117: LF | I117: 0
C118: 15" RCP | D118: =38*('Annual Change of CCI'!C47) -> 59.92538267 | E118: LF | I118: 0
C119: 18" RCP | D119: =40*('Annual Change of CCI'!C47) -> 63.07935017 | E119: LF | I119: 0
C120: 21" RCP | D120: =44*('Annual Change of CCI'!C47) -> 69.38728519 | E120: LF | I120: 0
C121: 24" RCP | D121: =50*('Annual Change of CCI'!C47) -> 78.84918772 | E121: LF | I121: 0
C122: 27" RCP | D122: =52*('Annual Change of CCI'!C47) -> 82.00315523 | E122: LF | I122: 0
C123: 30" RCP | D123: =55*('Annual Change of CCI'!C47) -> 86.73410649 | E123: LF | I123: 0
C124: 33" RCP | D124: =59*('Annual Change of CCI'!C47) -> 93.04204151 | E124: LF | I124: 0
C125: 36" RCP | D125: =62*('Annual Change of CCI'!C47) -> 97.77299277 | E125: LF | I125: 0
C126: 42" RCP | D126: =75*('Annual Change of CCI'!C47) -> 118.2737816 | E126: LF | I126: 0
C127: 48" RCP | D127: =87*('Annual Change of CCI'!C47) -> 137.1975866 | E127: LF | I127: 0
C128: 54" RCP | D128: =111*('Annual Change of CCI'!C47) -> 175.0451967 | E128: LF | I128: 0
C129: 60" RCP | D129: =133*('Annual Change of CCI'!C47) -> 209.7388393 | E129: LF | I129: 0
C130: 66" RCP | D130: =168*('Annual Change of CCI'!C47) -> 264.9332707 | E130: LF | I130: 0
C131: 72" RCP | D131: =230*('Annual Change of CCI'!C47) -> 362.7062635 | E131: LF | I131: 0
C132: Area Inlet, Single | D132: =2070*('Annual Change of CCI'!C47) -> 3264.356372 | E132: Each | I132: 0
C133: Area Inlet, Double | D133: =2485*('Annual Change of CCI'!C47) -> 3918.80463 | E133: Each | I133: 0
C134: Area Inlet, Triple | D134: =3105*('Annual Change of CCI'!C47) -> 4896.534557 | E134: Each | I134: 0
C135: Manhole | D135: =1350*('Annual Change of CCI'!C47) -> 2128.928068 | E135: Each | I135: 0
C136: Curb Inlet, Single | D136: =1350*('Annual Change of CCI'!C47) -> 2128.928068 | E136: Each | I136: 0
C137: Curb Inlet, Double | D137: =2560*('Annual Change of CCI'!C47) -> 4037.078411 | E137: Each | I137: 0
C138: Curb Inlet, Triple | D138: =2700*('Annual Change of CCI'!C47) -> 4257.856137 | E138: Each | I138: 0
C139: Box Culvert | D139: =727*('Annual Change of CCI'!C47) -> 1146.467189 | E139: CY | I139: 0
B140: W* | C140: Junction Chamber | D140: =13250*('Annual Change of CCI'!E47) -> 15313.5743 | E140: Each | I140: 0
C141: Overflow Structure | D141: =6210*('Annual Change of CCI'!C47) -> 9793.069115 | E141: Each | I141: 0
C142: Detention / Retention Basin - Apartments / Condominiums | D142: =62*('Annual Change of CCI'!C47) -> 97.77299277 | E142: Unit | F142: =9330*('Annual Change of CCI'!C47) -> 14713.25843 | I142: 0
C143: Detention / Retention Basin - Industrial / Commercial | D143: =1238*('Annual Change of CCI'!C47) -> 1952.305888 | E143: Acre | F143: =15500*('Annual Change of CCI'!C47) -> 24443.24819 | I143: 0
C144: Detention / Retention Basin - Residential | D144: =250*('Annual Change of CCI'!C47) -> 394.2459386 | E144: Lot | F144: =7750*('Annual Change of CCI'!C47) -> 12221.6241 | I144: 0
C145: Riprap / Revetment - Heavy Stone (12-24") | D145: =47*('Annual Change of CCI'!C47) -> 74.11823646 | E145: SY | I145: 0
C146: Riprap / Revetment - Light Stone (9-12") | D146: =47*('Annual Change of CCI'!C47) -> 74.11823646 | E146: SY | I146: 0
B147: W* | C147: Mandrel Test | D147: =10*('Annual Change of CCI'!D47) -> 11.83450358 | E147: Run | F147: =500*('Annual Change of CCI'!D47) -> 591.7251789 | I147: 0
B148: W* | C148: Jetting | D148: =1.5*('Annual Change of CCI'!D47) -> 1.775175537 | E148: LF | I148: 0
C149: Granular Fill | D149: =3.7*('Annual Change of CCI'!C47) -> 5.834839891 | E149: CY | I149: 0
C150: Concrete Encasement | D150: =220*('Annual Change of CCI'!C47) -> 346.936426 | E150: CY | I150: =IF(G150>0,(D150*G150)+F150,0) -> 0
B151: W* | C151: Underdrain | D151: =750*('Annual Change of CCI'!E47) -> 866.8060923 | E151: Each | I151: =IF(G151>0,(D151*G151)+F151,0) -> 0
I152: 0
D154: Storm | I154: =SUM(I86:I153) -> 0
B156: Water Quality Improvements
B157: W* | C157: Filter or Infiltration BMP | D157: =16*('Annual Change of CCI'!E47) -> 18.4918633 | E157: SF | I157: =IF(G157>0,(D157*G157)+F157,0) -> 0
B158: W* | C158: Wet Pond | D158: =13.25*('Annual Change of CCI'!E47) -> 15.3135743 | E158: SF | I158: =IF(G158>0,(D158*G158)+F158,0) -> 0
I159: 0
D161: Water Quality | I161: =SUM(I157:I160) -> 0
B164: Streets
C165: Concrete ADA Curb Ramp with Truncated Domes | D165: =1035*('Annual Change of CCI'!C47) -> 1632.178186 | E165: Each | I165: =IF(G165>0,(D165*G165)+F165,0) -> 0
C166: Concrete Sidewalk - 4" Thick | D166: =4.7*('Annual Change of CCI'!C47) -> 7.411823646 | E166: SF | I166: =IF(G166>0,(D166*G166)+F166,0) -> 0
C167: Concrete Sidewalk - 6" Thick (Residential Entrances) | D167: =4.9*('Annual Change of CCI'!C47) -> 7.727220396 | E167: SF | I167: 0
C168: Concrete Sidewalk - 7" Thick (Commercial Entrances) | D168: =5.1*('Annual Change of CCI'!C47) -> 8.042617147 | E168: SF | I168: 0
C169: Type 5 Aggregate Base - 4" | D169: =4.4*('Annual Change of CCI'!C47) -> 6.938728519 | E169: SY | I169: 0
C170: Concrete Pavement - 7" PCC (Non-Reinforced) | D170: =35*('Annual Change of CCI'!C47) -> 55.1944314 | E170: SY | I170: 0
C171: Concrete Pavement - 8" PCC (Non-Reinforced) | D171: =38.5*('Annual Change of CCI'!C47) -> 60.71387454 | E171: SY | I171: 0
C172: Concrete Curb (Integral) - Type "O" | D172: 10.74951 | E172: LF | I172: 0
C173: Concrete Curb (Integral) - Rolled | D173: =8.5*('Annual Change of CCI'!C47) -> 13.40436191 | E173: LF | I173: 0
C174: Concrete Curb & Gutter - Type "O" | D174: =20.7*('Annual Change of CCI'!C47) -> 32.64356372 | E174: LF | I174: 0
C175: Concrete Curb & Gutter - Rolled | D175: =16.6*('Annual Change of CCI'!C47) -> 26.17793032 | E175: LF | I175: 0
B176: W* | C176: A2 Expansion Joint | D176: =519.3*('Annual Change of CCI'!D47) -> 614.5657708 | E176: Each | I176: 0
C177: Guard Rail (Steel) | D177: =57.4*('Annual Change of CCI'!C47) -> 90.5188675 | E177: LF | I177: 0
B178: W* | C178: Street Name Sign | D178: =255.4956*('Annual Change of CCI'!D47) -> 302.3663592 | E178: Each | I178: 0
B179: W* | C179: Stop Sign | D179: =207.72*('Annual Change of CCI'!D47) -> 245.8263083 | E179: Each | I179: 0
B180: W* | C180: Yield Sign | D180: =207.72*('Annual Change of CCI'!D47) -> 245.8263083 | E180: Each | I180: 0
B181: W* | C181: Speed Limit Sign | D181: =181.755*('Annual Change of CCI'!D47) -> 215.0980198 | E181: Each | I181: 0
B182: W* | C182: No Parking Sign | D182: =129.825*('Annual Change of CCI'!D47) -> 153.6414427 | E182: Each | I182: 0
B183: W* | C183: End of Road Markers | D183: =311.58*('Annual Change of CCI'!D47) -> 368.7394625 | E183: Each | I183: 0
B184: W* | C184: Other Signs | D184: =207.72*('Annual Change of CCI'!D47) -> 245.8263083 | E184: Each | I184: 0
B185: W* | C185: Street Lights - Typical | D185: =778.95*('Annual Change of CCI'!D47) -> 921.8486562 | E185: Each | I185: 0
B186: W* | C186: Street Lights - Special | D186: =1557.9*('Annual Change of CCI'!D47) -> 1843.697312 | E186: Each | I186: 0
C187: Saw Cutting | D187: =5.75*('Annual Change of CCI'!C47) -> 9.067656588 | E187: LF | I187: 0
C188: Removal - Concrete Curb & Gutter | D188: =30.8*('Annual Change of CCI'!C47) -> 48.57109963 | E188: LF | I188: 0
C189: Removal - Concrete Pavement | D189: =56.39598*('Annual Change of CCI'!C47) -> 88.93554427 | E189: SY | I189: 0
C190: Removal - Concrete Sidewalk | D190: =7.3*('Annual Change of CCI'!C47) -> 11.51198141 | E190: SF | I190: 0
C191: Removal - Concrete Driveway | D191: =49.2*('Annual Change of CCI'!C47) -> 77.58760071 | E191: SY | I191: 0
C192: Removal - Residential Temporary Turnaround | D192: =4600*('Annual Change of CCI'!C47) -> 7254.12527 | E192: Each | I192: 0
I193: =IF(G193>0,(D193*G193)+F193,0) -> 0
I194: 0
D196: Streets | I196: =SUM(I165:I195) -> 0
B198: Other
B199: W* | C199: As-Builts - Residential | D199: =25.965*('Annual Change of CCI'!D47) -> 30.72828854 | E199: Lot | F199: =3115.8*('Annual Change of CCI'!D47) -> 3687.394625 | I199: =IF(G199>0,(G199*D199)+F199,0) -> 0
B200: W* | C200: As-Builts - Non-Residential | D200: =155.79*('Annual Change of CCI'!D47) -> 184.3697312 | E200: Acre | F200: =1557.9*('Annual Change of CCI'!D47) -> 1843.697312 | I200: =IF(G200>0,(G200*D200)+F200,0) -> 0
I201: =IF(G201>0,(G201*D201)+F201,0) -> 0
D203: Other | I203: =SUM(I199:I202) -> 0
D205: SUMMARY OF COST ESTIMATE
D206: Sediment and Erosion Control | I206: =I21 -> 0
D207: Grading | I207: =I33 -> 0
D208: Water | I208: =I55 -> 0
D209: Sanitary | I209: =I84 -> 0
D210: Storm | I210: =I154 -> 0
D211: Water Quality | I211: =I161 -> 0
D212: Streets | I212: =I196 -> 0
D213: Other | I213: =I203 -> 0

Sheet Step 3- Fee and Deposit Summary
D3: ='Step 1 - Permit Fee Estimate'!D15 -> 0
D4: Permit Fee and Guarantee Summary
C8: Permit Fees
C9: Type | D9: Fee Amount
C10: Grading Permit Fee | D10: ='Step 1 - Permit Fee Estimate'!D25 -> N/A - Site is less than 20,000 SF
C11: Construction Permit Fee | D11: ='Step 1 - Permit Fee Estimate'!D30 -> N/A - No Public Improvements
D12: =IF('Step 1 - Permit Fee Estimate'!D17>0.459,'Step 1 - Permit Fee Estimate'!D25,0)+IF('Step 1 - Permit Fee Estimate'!D28>0,'Step 1 - Permit Fee Estimate'!D30,0) -> 0
C14: Guarantee Deposits Required For Construction and/or Grading Permit(s)
C15: Type | D15: Calculation | E15: Deposit Amount
C16: Sediment and Erosion Control | D16: 110% Sediment and Erosion Control Estimate | E16: =('Step 2- Engineers Cost Estimate'!I206)*1.1 -> 0
C17: Improvements | D17: 100% Water Quality and 110% Other Improvements | E17: =SUM('Step 2- Engineers Cost Estimate'!I211,(SUM('Step 2- Engineers Cost Estimate'!I207:I210,'Step 2- Engineers Cost Estimate'!I212:I213))*1.1) -> 0
E18: =IF('Step 1 - Permit Fee Estimate'!D19>0,'Step 3- Fee and Deposit Summary'!E17,0)+IF('Step 1 - Permit Fee Estimate'!D25>0,'Step 3- Fee and Deposit Summary'!E16,0) -> 0
C20: Guarantee Deposits Required for Release of Sediment and Erosion Control and Improvements Deposits
C21: Type | D21: Calculation | E21: Deposit Amount
C22: Maintenance | D22: 5% Public Improvements | E22: =IF('Step 1 - Permit Fee Estimate'!D16="Residential",(SUM('Step 2- Engineers Cost Estimate'!I207:I210,'Step 2- Engineers Cost Estimate'!I212:I213))*0.05,"N/A as Non-Residential") -> N/A as Non-Residential
C23: Water Quality | D23: 100% Water Quality Improvements | E23: =IF('Step 1 - Permit Fee Estimate'!D16="Residential",'Step 2- Engineers Cost Estimate'!I211,"N/A as Non-Residential") -> N/A as Non-Residential
E24: =IF('Step 1 - Permit Fee Estimate'!D16="Residential",E22+E23,0) -> 0

Sheet <!> (hidden)
A1: <DEVELOPMENT TYPE>
A2: Residential
A3: Non-Residential
A5: Yes
A6: No

Sheet Annual Change of CCI (hidden)
A1: St. Louis County Escrow Unit Prices | D1: W* - Wentzville Cost Based on City Bid Tabs and Cost Estimates
A2: Base Year: | C2: 2008 | D2: 2016 | E2: 2018 | F2: 2024
A3: Year | B3: Annual Change of CCI | C3: Percent of Base Year Cost | D3: Percent of Base Year Cost | E3: Percent of Base Year Cost | F3: Percent of Base Year Cost
A4: 2008 | B4: Base | C4: 1
A5: 2009 | B5: 0.034 | C5: =C4*(1+B5) -> 1.034
A6: 2010 | B6: 0.015 | C6: =C5*(1+B6) -> 1.04951
A7: 2011 | B7: 0.039 | C7: =C6*(1+B7) -> 1.09044089
A8: 2012 | B8: 0.009 | C8: 1.100254858
A9: 2013 | B9: 0.024 | C9: 1.126660975
A10: 2014 | B10: 0.029 | C10: 1.159334143
A11: 2015 | B11: 0.029 | C11: 1.192954833
A12: 2016 | B12: 0.117 | C12: 1.332530548 | D12: 1
A13: 2017 | B13: 0.025 | C13: 1.365843812 | D13: =D12*(1+$B13) -> 1.025
A14: 2018 | B14: -0.001 | C14: 1.364477968 | D14: =D13*(1+$B14) -> 1.023975 | E14: 1
A15: 2019 | B15: 0.019 | C15: 1.39040305 | D15: 1.043430525 | E15: =E14*(1+$B15) -> 1.019
A16: 2020 | B16: 0.005 | C16: 1.397355065 | D16: 1.048647678 | E16: =E15*(1+$B16) -> 1.024095
A17: 2021 | B17: 0.018 | C17: 1.422507456 | D17: 1.067523336 | E17: 1.04252871
A18: 2022 | B18: 0.044 | C18: 1.485097784 | D18: 1.114494363 | E18: 1.088399973
A19: 2023 | B19: 0.064 | C19: 1.580144042 | D19: 1.185822002 | E19: 1.158057572
A20: 2024 | B20: -0.002 | C20: 1.576983754 | D20: 1.183450358 | E20: 1.155741456 | F20: 1
A21: 2025 | C21: 1.576983754 | D21: 1.183450358 | E21: 1.155741456 | F21: 1
A22: 2026 | C22: 1.576983754 | D22: 1.183450358 | E22: 1.155741456 | F22: =F21*(1+$B22) -> 1
A23: 2027 | C23: 1.576983754 | D23: 1.183450358 | E23: 1.155741456 | F23: =F22*(1+$B23) -> 1
A24: 2028 | C24: 1.576983754 | D24: 1.183450358 | E24: 1.155741456 | F24: =F23*(1+$B24) -> 1
A25: 2029 | C25: 1.576983754 | D25: 1.183450358 | E25: 1.155741456 | F25: =F24*(1+$B25) -> 1
A26: 2030 | C26: 1.576983754 | D26: 1.183450358 | E26: 1.155741456 | F26: =F25*(1+$B26) -> 1
A27: 2031 | C27: 1.576983754 | D27: 1.183450358 | E27: 1.155741456 | F27: =F26*(1+$B27) -> 1
A28: 2032 | C28: 1.576983754 | D28: 1.183450358 | E28: 1.155741456 | F28: =F27*(1+$B28) -> 1
A29: 2033 | C29: 1.576983754 | D29: 1.183450358 | E29: 1.155741456 | F29: =F28*(1+$B29) -> 1
A30: 2034 | C30: 1.576983754 | D30: 1.183450358 | E30: 1.155741456 | F30: =F29*(1+$B30) -> 1
A31: 2035 | C31: 1.576983754 | D31: 1.183450358 | E31: 1.155741456 | F31: =F30*(1+$B31) -> 1
A32: 2036 | C32: 1.576983754 | D32: 1.183450358 | E32: 1.155741456 | F32: =F31*(1+$B32) -> 1
A33: 2037 | C33: 1.576983754 | D33: 1.183450358 | E33: 1.155741456 | F33: =F32*(1+$B33) -> 1
A34: 2038 | C34: 1.576983754 | D34: 1.183450358 | E34: 1.155741456 | F34: =F33*(1+$B34) -> 1
A35: 2039 | C35: 1.576983754 | D35: 1.183450358 | E35: 1.155741456 | F35: =F34*(1+$B35) -> 1
A36: 2040 | C36: 1.576983754 | D36: 1.183450358 | E36: 1.155741456 | F36: =F35*(1+$B36) -> 1
A37: 2041 | C37: 1.576983754 | D37: 1.183450358 | E37: 1.155741456 | F37: =F36*(1+$B37) -> 1
A38: 2042 | C38: 1.576983754 | D38: 1.183450358 | E38: 1.155741456 | F38: =F37*(1+$B38) -> 1
A39: 2043 | C39: 1.576983754 | D39: 1.183450358 | E39: 1.155741456 | F39: =F38*(1+$B39) -> 1
A40: 2044 | C40: 1.576983754 | D40: 1.183450358 | E40: 1.155741456 | F40: =F39*(1+$B40) -> 1
A41: 2045 | C41: 1.576983754 | D41: 1.183450358 | E41: 1.155741456 | F41: =F40*(1+$B41) -> 1
A42: 2046 | C42: 1.576983754 | D42: 1.183450358 | E42: 1.155741456 | F42: =F41*(1+$B42) -> 1
A43: 2047 | C43: 1.576983754 | D43: 1.183450358 | E43: 1.155741456 | F43: =F42*(1+$B43) -> 1
A44: 2048 | C44: 1.576983754 | D44: 1.183450358 | E44: 1.155741456 | F44: =F43*(1+$B44) -> 1
A45: 2049 | C45: 1.576983754 | D45: 1.183450358 | E45: 1.155741456 | F45: =F44*(1+$B45) -> 1
A46: 2050 | C46: 1.576983754 | D46: 1.183450358 | E46: 1.155741456 | F46: =F45*(1+$B46) -> 1
A47: Percent Change from Base | C47: 1.576983754 | D47: 1.183450358 | E47: 1.155741456

Sheet 5% of Costs (hidden)
B2: Breakdown of Partial Release by Category of Improvement
B3: Category | C3: Calculation | D3: Minimum Deposit Amount
B4: Sediment and Erosion Control | C4: 10% Retention Upon Completion of Improvements | D4: =('Step 2- Engineers Cost Estimate'!I206)*0.1 -> 0
B5: Grading | C5: 5% Retention Upon Completion of Category | D5: =('Step 2- Engineers Cost Estimate'!I207)*0.05 -> 0
B6: Water | D6: =('Step 2- Engineers Cost Estimate'!I208)*0.05 -> 0
B7: Sanitary | D7: =('Step 2- Engineers Cost Estimate'!I209)*0.05 -> 0
B8: Storm | D8: =('Step 2- Engineers Cost Estimate'!I210)*0.05 -> 0
B9: Water Quality | D9: =('Step 2- Engineers Cost Estimate'!I211)*0.05 -> 0
B10: Streets | D10: =('Step 2- Engineers Cost Estimate'!I212)*0.05 -> 0
B11: Other | D11: =('Step 2- Engineers Cost Estimate'!I213)*0.05 -> 0
